[Event "Lilla Elite Hotels Open 2023"]
[Site "Elite Stadshotellet, Kungsgatan 6, Vaxjo, Sweden"]
[Date "2023.02.10"]
[Round "3.2"]
[White "Truskavetska, Solomia"]
[Black "Johansson, Sigge"]
[Result "1-0"]
[TimeControl "15 minutes + 5 seconds per move from move one (Round 1 - 4) / 90 minutes + 30 seconds per move from move one (Round 5 - 8)"]
[WhiteFideId "1744658"]
[BlackFideId "1742612"]
[WhiteElo "1558"]
[BlackElo "1405"]

1. e4 {[%clk 00:15:09]} {[%emt 00:00:01]} c5 {[%clk 00:15:09]} {[%emt
00:00:01]} 2. Nf3 {[%clk 00:15:12]} {[%emt 00:00:02]} g6 {[%clk 00:15:13]}
{[%emt 00:00:01]} 3. d4 {[%clk 00:15:15]} {[%emt 00:00:01]} cxd4 {[%clk
00:15:16]} {[%emt 00:00:01]} 4. Nxd4 {[%clk 00:15:19]} {[%emt 00:00:01]} Bg7
{[%clk 00:15:20]} 5. Be3 {[%clk 00:15:18]} {[%emt 00:00:07]} Nf6 {[%clk
00:15:24]} {[%emt 00:00:01]} 6. Nc3 {[%clk 00:15:20]} {[%emt 00:00:04]} Nc6
{[%clk 00:15:27]} {[%emt 00:00:01]} 7. Bc4 {[%clk 00:15:17]} {[%emt 00:00:09]}
O-O {[%clk 00:15:29]} {[%emt 00:00:03]} 8. f3 {[%clk 00:15:05]} {[%emt
00:00:17]} a6 {[%clk 00:14:48]} {[%emt 00:00:45]} 9. O-O {[%clk 00:14:15]}
{[%emt 00:00:55]} e6 {[%clk 00:14:28]} {[%emt 00:00:26]} 10. Nxc6 {[%clk
00:13:34]} {[%emt 00:00:46]} bxc6 {[%clk 00:14:31]} 11. Na4 {[%clk 00:12:01]}
{[%emt 00:01:38]} d5 {[%clk 00:12:42]} {[%emt 00:01:55]} 12. Bb6 {[%clk
00:11:27]} {[%emt 00:00:39]} Qe8 {[%clk 00:11:50]} {[%emt 00:00:56]} 13. Bb3
{[%clk 00:11:07]} {[%emt 00:00:26]} Nd7 {[%clk 00:11:43]} {[%emt 00:00:11]} 14.
exd5 {[%clk 00:10:34]} {[%emt 00:00:38]} cxd5 {[%clk 00:11:32]} {[%emt
00:00:17]} 15. Re1 {[%clk 00:10:23]} {[%emt 00:00:16]} Rb8 {[%clk 00:09:54]}
{[%emt 00:01:43]} 16. Bc7 {[%clk 00:10:13]} {[%emt 00:00:14]} Rb7 {[%clk
00:09:51]} {[%emt 00:00:09]} 17. Bd6 {[%clk 00:10:11]} {[%emt 00:00:06]} Qd8
{[%clk 00:08:47]} {[%emt 00:01:10]} 18. Bxf8 {[%emt 00:00:21]} Qxf8 {[%clk
00:08:38]} {[%emt 00:00:13]} 19. Qd2 {[%clk 00:08:44]} {[%emt 00:01:16]} Nc5
{[%clk 00:08:28]} {[%emt 00:00:15]} 20. Nc3 {[%clk 00:07:09]} {[%emt 00:01:40]}
Bd7 {[%clk 00:08:02]} {[%emt 00:00:31]} 21. Kh1 {[%clk 00:03:54]} {[%emt
00:03:20]} a5 {[%clk 00:08:06]} {[%emt 00:00:02]} 22. a3 {[%clk 00:01:56]}
{[%emt 00:02:03]} Nxb3 {[%clk 00:07:39]} {[%emt 00:00:32]} 23. cxb3 Rxb3 {[%clk
00:07:43]} 24. Rab1 {[%clk 00:01:50]} {[%emt 00:00:15]} Qb8 {[%clk 00:07:36]}
{[%emt 00:00:11]} 25. Nd1 {[%clk 00:00:25]} {[%emt 00:01:30]} a4 {[%clk
00:06:40]} {[%emt 00:01:00]} 26. Re3 {[%clk 00:00:12]} {[%emt 00:00:18]} Rb5
{[%clk 00:06:28]} {[%emt 00:00:17]} 27. Nc3 {[%clk 00:00:13]} {[%emt 00:00:05]}
d4 {[%clk 00:05:47]} {[%emt 00:00:45]} 28. Nxb5 {[%clk 00:00:12]} {[%emt
00:00:07]} dxe3 {[%clk 00:05:45]} {[%emt 00:00:07]} 29. Qxd7 {[%clk 00:00:15]}
{[%emt 00:00:02]} Qe5 {[%clk 00:05:22]} {[%emt 00:00:28]} 30. Nd6 {[%clk
00:00:12]} {[%emt 00:00:08]} Qf4 {[%clk 00:05:07]} {[%emt 00:00:19]} 31. Qe8+
{[%clk 00:00:08]} {[%emt 00:00:09]} Bf8 {[%clk 00:05:11]} {[%emt 00:00:02]} 32.
Qxf7+ {[%clk 00:00:11]} {[%emt 00:00:02]} Qxf7 {[%clk 00:05:13]} {[%emt
00:00:02]} 33. Nxf7 Kxf7 {[%clk 00:05:16]} 34. b4 {[%clk 00:00:12]} {[%emt
00:00:09]} axb3 {[%clk 00:05:06]} {[%emt 00:00:15]} 35. Rxb3 {[%clk 00:00:15]}
e2 {[%clk 00:05:10]} {[%emt 00:00:01]} 36. Re3 {[%clk 00:00:11]} {[%emt
00:00:09]} Bc5 {[%clk 00:05:12]} {[%emt 00:00:03]} 37. Rxe2 {[%clk 00:00:14]}
{[%emt 00:00:03]} Bxa3 {[%clk 00:05:16]} {[%emt 00:00:01]} 38. Ra2 {[%clk
00:00:18]} Bd6 {[%clk 00:05:17]} {[%emt 00:00:04]} 39. Ra7+ {[%clk 00:00:22]}
{[%emt 00:00:01]} Kg8 {[%clk 00:05:21]} {[%emt 00:00:01]} 40. Rd7 {[%clk
00:00:24]} {[%emt 00:00:03]} Bb4 {[%clk 00:05:14]} {[%emt 00:00:12]} 41. Rb7
{[%clk 00:00:23]} {[%emt 00:00:05]} Bc3 {[%clk 00:05:10]} {[%emt 00:00:10]} 42.
f4 {[%clk 00:00:24]} {[%emt 00:00:04]} e5 {[%clk 00:05:07]} {[%emt 00:00:07]}
43. Rc7 {[%clk 00:00:20]} {[%emt 00:00:09]} Bd4 {[%clk 00:05:06]} {[%emt
00:00:06]} 44. Rd7 {[%clk 00:00:16]} {[%emt 00:00:10]} Ba1 {[%clk 00:05:08]}
{[%emt 00:00:02]} 45. Rd1 {[%clk 00:00:12]} {[%emt 00:00:10]} Bb2 {[%clk
00:05:11]} {[%emt 00:00:02]} 46. fxe5 {[%clk 00:00:08]} {[%emt 00:00:09]} Bxe5
{[%clk 00:05:14]} {[%emt 00:00:01]} 47. g3 {[%clk 00:00:12]} {[%emt 00:00:01]}
Kg7 {[%clk 00:05:08]} {[%emt 00:00:11]} 48. Rd7+ {[%clk 00:00:16]} {[%emt
00:00:02]} Kh6 {[%clk 00:05:08]} {[%emt 00:00:04]} 49. Kg2 {[%clk 00:00:20]}
{[%emt 00:00:02]} Bc3 {[%clk 00:05:01]} {[%emt 00:00:12]} 50. Kf3 {[%clk
00:00:23]} {[%emt 00:00:01]} Bb2 {[%clk 00:05:04]} {[%emt 00:00:02]} 51. Ke4
{[%clk 00:00:12]} {[%emt 00:00:16]} g5 {[%clk 00:04:56]} {[%emt 00:00:14]} 52.
Kf5 {[%clk 00:00:14]} {[%emt 00:00:03]} Bc1 {[%clk 00:04:57]} {[%emt 00:00:04]}
53. Rc7 {[%clk 00:00:06]} {[%emt 00:00:12]} Bd2 {[%clk 00:04:56]} {[%emt
00:00:06]} 54. Rc6+ {[%clk 00:00:06]} {[%emt 00:00:06]} Kg7 {[%clk 00:04:59]}
{[%emt 00:00:02]} 55. Rc7+ {[%clk 00:00:10]} {[%emt 00:00:01]} Kh6 {[%clk
00:05:01]} {[%emt 00:00:03]} 56. Rd7 {[%clk 00:00:14]} {[%emt 00:00:02]} Bc1
{[%clk 00:05:04]} {[%emt 00:00:01]} 57. Rd6+ {[%clk 00:00:15]} {[%emt
00:00:04]} Kg7 {[%clk 00:05:07]} {[%emt 00:00:01]} 58. Rd7+ {[%clk 00:00:18]}
{[%emt 00:00:02]} Kh6 {[%clk 00:05:11]} {[%emt 00:00:01]} 59. Ke6 {[%clk
00:00:22]} {[%emt 00:00:02]} Kg6 {[%clk 00:05:08]} {[%emt 00:00:08]} 60. Ke5
{[%clk 00:00:21]} {[%emt 00:00:07]} Bb2+ {[%clk 00:05:06]} {[%emt 00:00:06]} 61.
Ke6 {[%clk 00:00:24]} Bc1 {[%clk 00:05:09]} {[%emt 00:00:02]} 62. Rd5 {[%clk
00:00:24]} {[%emt 00:00:05]} Be3 {[%clk 00:04:59]} {[%emt 00:00:14]} 63. Ke7
{[%clk 00:00:16]} {[%emt 00:00:15]} Bg1 {[%clk 00:04:44]} {[%emt 00:00:19]} 64.
h3 {[%clk 00:00:18]} {[%emt 00:00:03]} Be3 {[%clk 00:04:26]} {[%emt 00:00:23]}
65. g4 {[%clk 00:00:12]} {[%emt 00:00:11]} Kg7 {[%clk 00:04:30]} {[%emt
00:00:02]} 66. Ke8 {[%clk 00:00:07]} {[%emt 00:00:09]} Kg8 {[%clk 00:04:28]}
{[%emt 00:00:06]} 67. Re5 {[%clk 00:00:09]} {[%emt 00:00:04]} Bd2 {[%clk
00:04:27]} {[%emt 00:00:07]} 68. Ke7 {[%clk 00:00:10]} {[%emt 00:00:03]} Kg7
{[%clk 00:04:31]} {[%emt 00:00:02]} 69. Ke6 {[%clk 00:00:13]} {[%emt 00:00:02]}
Kg6 {[%clk 00:04:31]} {[%emt 00:00:04]} 70. Rd5 {[%clk 00:00:16]} {[%emt
00:00:02]} Be3 {[%clk 00:04:34]} {[%emt 00:00:03]} 71. Rd8 {[%clk 00:00:16]}
{[%emt 00:00:03]} Kg7 {[%clk 00:04:36]} {[%emt 00:00:04]} 72. Kf5 {[%clk
00:00:18]} {[%emt 00:00:03]} Bc1 {[%clk 00:04:28]} {[%emt 00:00:12]} 73. Rd7+
{[%clk 00:00:18]} {[%emt 00:00:06]} Kg8 {[%clk 00:04:20]} {[%emt 00:00:13]} 74.
Rd6 {[%clk 00:00:17]} {[%emt 00:00:06]} Kg7 {[%clk 00:04:23]} {[%emt 00:00:02]}
75. Re6 {[%clk 00:00:19]} {[%emt 00:00:03]} Bd2 {[%clk 00:04:16]} {[%emt
00:00:12]} 76. Rc6 {[%clk 00:00:11]} {[%emt 00:00:13]} Bf4 {[%clk 00:04:06]}
{[%emt 00:00:15]} 77. Rc4 {[%clk 00:00:11]} {[%emt 00:00:05]} Be3 {[%clk
00:04:09]} {[%emt 00:00:02]} 78. Ke4 {[%clk 00:00:13]} {[%emt 00:00:03]} Bd2
{[%clk 00:04:11]} {[%emt 00:00:03]} 79. Rc5 {[%clk 00:00:08]} {[%emt 00:00:11]}
Kf6 {[%clk 00:04:08]} {[%emt 00:00:07]} 80. Rc7 {[%clk 00:00:10]} {[%emt
00:00:03]} Kg6 {[%clk 00:04:12]} {[%emt 00:00:02]} 81. Kf3 {[%clk 00:00:09]}
{[%emt 00:00:07]} Kh6 {[%clk 00:04:12]} {[%emt 00:00:04]} 82. Rd7 {[%clk
00:00:09]} {[%emt 00:00:05]} Bf4 {[%clk 00:04:15]} {[%emt 00:00:02]} 83. Rd1
{[%clk 00:00:11]} {[%emt 00:00:04]} Kg6 {[%clk 00:04:17]} {[%emt 00:00:02]} 84.
Rh1 {[%clk 00:00:09]} {[%emt 00:00:07]} Bd2 {[%clk 00:04:12]} {[%emt 00:00:10]}
85. Rd1 {[%clk 00:00:12]} {[%emt 00:00:02]} Bf4 {[%clk 00:04:15]} {[%emt
00:00:01]} 86. h4 {[%clk 00:00:16]} Bb8 {[%clk 00:04:01]} {[%emt 00:00:19]} 87.
Rb1 {[%clk 00:00:12]} {[%emt 00:00:08]} Bf4 {[%clk 00:04:02]} {[%emt 00:00:06]}
88. Rb6+ {[%clk 00:00:13]} {[%emt 00:00:04]} Kg7 {[%clk 00:04:04]} {[%emt
00:00:03]} 89. Ke4 {[%clk 00:00:08]} {[%emt 00:00:10]} Bd2 {[%clk 00:04:03]}
{[%emt 00:00:05]} 90. Rd6 {[%clk 00:00:07]} {[%emt 00:00:07]} Bc1 {[%clk
00:04:05]} {[%emt 00:00:02]} 91. Rc6 {[%clk 00:00:08]} {[%emt 00:00:03]} Bd2
{[%clk 00:04:09]} {[%emt 00:00:01]} 92. Rc7+ {[%clk 00:00:12]} {[%emt
00:00:02]} Kg8 {[%clk 00:04:03]} {[%emt 00:00:10]} 93. Rd7 {[%clk 00:00:14]}
{[%emt 00:00:04]} Bc1 {[%clk 00:04:07]} 94. Rc7 {[%clk 00:00:15]} {[%emt
00:00:04]} Bd2 {[%clk 00:04:11]} 95. Kd3 {[%clk 00:00:19]} {[%emt 00:00:01]}
Bf4 {[%clk 00:04:07]} {[%emt 00:00:09]} 96. Rc8+ {[%clk 00:00:11]} {[%emt
00:00:13]} Kg7 {[%clk 00:04:11]} 97. Ke4 {[%clk 00:00:14]} {[%emt 00:00:02]}
Bd2 {[%clk 00:04:15]} 98. Rc7+ {[%clk 00:00:07]} {[%emt 00:00:12]} Kg8 {[%clk
00:04:18]} {[%emt 00:00:02]} 99. hxg5 {[%clk 00:00:06]} {[%emt 00:00:07]} Bxg5
{[%clk 00:04:21]} {[%emt 00:00:02]} 100. Kf5 {[%clk 00:00:10]} {[%emt
00:00:01]} h6 {[%clk 00:04:14]} {[%emt 00:00:11]} 101. Kg6 {[%clk 00:00:14]}
Kf8 {[%clk 00:04:18]} 102. Rh7 {[%clk 00:00:16]} {[%emt 00:00:03]} Kg8 {[%clk
00:03:48]} {[%emt 00:00:35]} 103. Rg7+ {[%clk 00:00:15]} {[%emt 00:00:06]} Kf8
{[%clk 00:03:52]} 104. Rh7 {[%clk 00:00:12]} {[%emt 00:00:08]} Kg8 {[%clk
00:03:56]} 105. Rc7 {[%clk 00:00:13]} {[%emt 00:00:04]} Kf8 {[%clk 00:04:00]}
{[%emt 00:00:02]} 106. Rc8+ {[%clk 00:00:14]} {[%emt 00:00:04]} Ke7 {[%clk
00:04:04]} {[%emt 00:00:01]} 107. Rh8 {[%clk 00:00:18]} Ke6 {[%clk 00:04:05]}
{[%emt 00:00:04]} 108. Rxh6 {[%clk 00:00:18]} {[%emt 00:00:06]} Bd2 {[%clk
00:03:51]} {[%emt 00:00:18]} 109. Kg7+ {[%clk 00:00:14]} {[%emt 00:00:07]} Ke7
{[%clk 00:03:50]} {[%emt 00:00:08]} 110. Kh7 {[%clk 00:00:13]} {[%emt
00:00:05]} Kf7 {[%clk 00:03:48]} {[%emt 00:00:07]} 111. Rg6 {[%clk 00:00:15]}
{[%emt 00:00:04]} Bc3 {[%clk 00:03:45]} {[%emt 00:00:07]} 112. Rc6 {[%clk
00:00:16]} {[%emt 00:00:04]} Bd4 {[%clk 00:03:49]} {[%emt 00:00:02]} 113. g5
{[%clk 00:00:20]} Bb2 {[%clk 00:03:53]} {[%emt 00:00:01]} 114. g6+ {[%clk
00:00:24]} Kf8 {[%clk 00:03:49]} {[%emt 00:00:09]} 115. Rc7 {[%clk 00:00:22]}
{[%emt 00:00:04]} Be5 {[%clk 00:03:52]} {[%emt 00:00:04]} 116. g7+ {[%clk
00:00:26]} {[%emt 00:00:01]} Bxg7 {[%clk 00:03:56]} {[%emt 00:00:02]} 117. Rxg7
{[%clk 00:00:30]} 1-0

[Event "Lilla Elite Hotels Open 2023"]
[Site "Elite Stadshotellet, Kungsgatan 6, Vaxjo, Sweden"]
[Date "2023.02.10"]
[Round "4.1"]
[White "Gunnare, William"]
[Black "Truskavetska, Solomia"]
[Result "0-1"]
[TimeControl "15 minutes + 5 seconds per move from move one (Round 1 - 4) / 90 minutes + 30 seconds per move from move one (Round 5 - 8)"]
[WhiteFideId "1774433"]
[BlackFideId "1744658"]
[WhiteElo "1457"]
[BlackElo "1558"]

1. d4 {[%clk 00:15:09]} {[%emt 00:00:01]} d5 {[%clk 00:15:06]} {[%emt
00:00:04]} 2. c4 {[%clk 00:15:13]} {[%emt 00:00:01]} c6 {[%clk 00:15:10]}
{[%emt 00:00:01]} 3. Nf3 {[%clk 00:15:16]} {[%emt 00:00:02]} Nf6 {[%clk
00:15:12]} {[%emt 00:00:03]} 4. g3 {[%clk 00:14:56]} {[%emt 00:00:25]} g6
{[%clk 00:14:24]} {[%emt 00:00:53]} 5. Bg2 {[%clk 00:14:49]} {[%emt 00:00:11]}
Bg7 {[%clk 00:14:27]} {[%emt 00:00:02]} 6. O-O {[%clk 00:14:52]} {[%emt
00:00:02]} O-O {[%clk 00:14:24]} {[%emt 00:00:09]} 7. Qc2 {[%clk 00:14:51]}
{[%emt 00:00:05]} Bf5 {[%clk 00:14:24]} {[%emt 00:00:05]} 8. Qb3 {[%clk
00:14:23]} {[%emt 00:00:33]} Qb6 {[%clk 00:14:16]} {[%emt 00:00:13]} 9. c5
{[%clk 00:13:39]} {[%emt 00:00:50]} Qxb3 {[%clk 00:13:45]} {[%emt 00:00:36]} 10.
axb3 {[%clk 00:13:42]} {[%emt 00:00:02]} Na6 {[%clk 00:13:32]} {[%emt
00:00:18]} 11. Ne5 {[%clk 00:11:12]} {[%emt 00:02:34]} Nb4 {[%clk 00:13:11]}
{[%emt 00:00:25]} 12. Na3 {[%clk 00:11:12]} {[%emt 00:00:06]} Ne4 {[%clk
00:12:12]} {[%emt 00:01:04]} 13. f3 {[%clk 00:10:12]} {[%emt 00:01:06]} Nxc5
{[%clk 00:11:55]} {[%emt 00:00:23]} 14. dxc5 {[%clk 00:07:35]} {[%emt
00:02:41]} Bxe5 {[%clk 00:11:53]} {[%emt 00:00:07]} 15. Bd2 {[%clk 00:06:30]}
{[%emt 00:01:10]} Bd4+ {[%clk 00:11:48]} {[%emt 00:00:10]} 16. Kh1 {[%clk
00:06:08]} {[%emt 00:00:27]} Bxc5 {[%clk 00:11:51]} {[%emt 00:00:02]} 17. e4
{[%clk 00:05:59]} {[%emt 00:00:13]} dxe4 {[%clk 00:11:42]} {[%emt 00:00:14]} 18.
fxe4 {[%clk 00:06:03]} {[%emt 00:00:02]} Be6 {[%clk 00:11:42]} {[%emt
00:00:03]} 19. Nc4 {[%clk 00:04:50]} {[%emt 00:01:20]} Nd3 {[%clk 00:10:35]}
{[%emt 00:01:11]} 20. h4 {[%clk 00:02:20]} {[%emt 00:02:36]} Bxc4 {[%clk
00:08:23]} {[%emt 00:02:17]} 21. bxc4 {[%clk 00:02:23]} Nxb2 {[%clk 00:08:25]}
{[%emt 00:00:03]} 22. Bh6 {[%clk 00:01:40]} {[%emt 00:00:48]} Rfe8 {[%clk
00:08:00]} {[%emt 00:00:30]} 23. Rab1 {[%clk 00:01:02]} {[%emt 00:00:44]} Bd4
{[%clk 00:07:34]} {[%emt 00:00:30]} 24. Bc1 {[%clk 00:00:18]} {[%emt 00:00:49]}
Nxc4 {[%clk 00:07:09]} {[%emt 00:00:30]} 25. Rxb7 {[%clk 00:00:16]} {[%emt
00:00:07]} Ne3 {[%clk 00:06:12]} {[%emt 00:01:02]} 0-1

[Event "Lilla Elite Hotels Open 2023"]
[Site "Elite Stadshotellet, Kungsgatan 6, Vaxjo, Sweden"]
[Date "2023.02.10"]
[Round "4.2"]
[White "Dingertz, Gustav"]
[Black "Tronsson, Martin"]
[Result "1/2-1/2"]
[TimeControl "15 minutes + 5 seconds per move from move one (Round 1 - 4) / 90 minutes + 30 seconds per move from move one (Round 5 - 8)"]
[WhiteFideId "1767917"]
[BlackFideId "1775057"]
[WhiteElo "1536"]
[BlackElo "1306"]

1. e4 {[%clk 00:15:08]} {[%emt 00:00:01]} e5 {[%clk 00:15:09]} {[%emt
00:00:02]} 2. Nf3 {[%clk 00:15:12]} {[%emt 00:00:01]} Nc6 {[%clk 00:15:12]}
{[%emt 00:00:01]} 3. d4 {[%clk 00:15:16]} {[%emt 00:00:01]} exd4 {[%clk
00:15:15]} {[%emt 00:00:02]} 4. Bc4 {[%clk 00:15:20]} {[%emt 00:00:01]} Nf6
{[%clk 00:14:49]} {[%emt 00:00:31]} 5. e5 {[%clk 00:15:24]} {[%emt 00:00:01]}
Ng8 {[%clk 00:14:43]} {[%emt 00:00:11]} 6. O-O {[%clk 00:15:19]} {[%emt
00:00:09]} d5 {[%clk 00:14:39]} {[%emt 00:00:09]} 7. Bb5 {[%clk 00:15:17]}
{[%emt 00:00:07]} Bc5 {[%clk 00:14:29]} {[%emt 00:00:15]} 8. Nxd4 {[%clk
00:15:10]} {[%emt 00:00:12]} Nge7 {[%clk 00:14:06]} {[%emt 00:00:28]} 9. Nc3
{[%clk 00:15:01]} {[%emt 00:00:14]} O-O {[%clk 00:13:59]} {[%emt 00:00:12]} 10.
Bxc6 {[%clk 00:11:52]} {[%emt 00:03:15]} Nxc6 {[%clk 00:14:01]} {[%emt
00:00:03]} 11. Nxc6 {[%clk 00:11:12]} {[%emt 00:00:45]} bxc6 {[%clk 00:14:03]}
{[%emt 00:00:02]} 12. Bf4 {[%clk 00:11:11]} {[%emt 00:00:06]} Bf5 {[%clk
00:13:37]} {[%emt 00:00:31]} 13. Ne2 {[%clk 00:09:56]} {[%emt 00:01:19]} Rb8
{[%clk 00:13:00]} {[%emt 00:00:43]} 14. Rb1 {[%clk 00:08:26]} {[%emt 00:01:35]}
Bg4 {[%clk 00:12:17]} {[%emt 00:00:49]} 15. Qd3 {[%clk 00:07:21]} {[%emt
00:01:07]} Qh4 {[%clk 00:11:31]} {[%emt 00:00:53]} 16. Bg3 {[%clk 00:06:28]}
{[%emt 00:00:59]} Qh5 {[%clk 00:11:08]} {[%emt 00:00:28]} 17. Nf4 {[%clk
00:05:25]} {[%emt 00:01:08]} Qf5 {[%clk 00:11:10]} {[%emt 00:00:03]} 18. Qxf5
{[%clk 00:04:49]} {[%emt 00:00:40]} Bxf5 {[%clk 00:11:12]} {[%emt 00:00:02]} 19.
b3 {[%clk 00:04:53]} {[%emt 00:00:02]} Rfe8 {[%clk 00:10:21]} {[%emt 00:00:56]}
20. Nd3 {[%clk 00:04:43]} {[%emt 00:00:15]} Bxd3 {[%clk 00:10:02]} {[%emt
00:00:24]} 21. cxd3 {[%clk 00:04:47]} {[%emt 00:00:02]} Bd4 {[%clk 00:10:01]}
{[%emt 00:00:05]} 22. Kh1 {[%clk 00:04:38]} {[%emt 00:00:13]} Rb6 {[%clk
00:09:36]} {[%emt 00:00:32]} 23. Rbc1 {[%clk 00:04:31]} {[%emt 00:00:12]} Bb2
{[%clk 00:08:56]} {[%emt 00:00:44]} 24. Rc2 {[%clk 00:04:30]} {[%emt 00:00:06]}
Bd4 {[%clk 00:08:58]} {[%emt 00:00:03]} 25. f4 {[%clk 00:04:28]} {[%emt
00:00:07]} h6 {[%clk 00:08:12]} {[%emt 00:00:51]} 26. Bf2 {[%clk 00:04:25]}
{[%emt 00:00:08]} Bxf2 {[%clk 00:08:13]} {[%emt 00:00:04]} 27. Rfxf2 {[%clk
00:04:29]} {[%emt 00:00:01]} f6 {[%clk 00:08:07]} {[%emt 00:00:12]} 28. d4
{[%clk 00:04:08]} {[%emt 00:00:26]} a5 {[%clk 00:08:06]} {[%emt 00:00:05]} 29.
Rf1 {[%clk 00:03:49]} {[%emt 00:00:23]} f5 {[%clk 00:07:52]} {[%emt 00:00:21]}
30. Rc5 {[%clk 00:03:45]} {[%emt 00:00:09]} Ra6 {[%clk 00:07:42]} {[%emt
00:00:14]} 31. Rfc1 {[%clk 00:03:40]} {[%emt 00:00:10]} Re6 {[%clk 00:07:44]}
{[%emt 00:00:03]} 32. h3 {[%clk 00:03:38]} {[%emt 00:00:07]} g5 {[%clk
00:07:32]} {[%emt 00:00:17]} 33. g3 {[%clk 00:03:30]} {[%emt 00:00:14]} Kf7
{[%clk 00:07:23]} {[%emt 00:00:13]} 34. Kg2 {[%clk 00:03:28]} {[%emt 00:00:07]}
Ke7 {[%clk 00:07:26]} {[%emt 00:00:02]} 35. Kf3 {[%clk 00:03:29]} {[%emt
00:00:04]} Kd7 {[%clk 00:07:25]} {[%emt 00:00:07]} 36. g4 {[%clk 00:03:20]}
{[%emt 00:00:13]} fxg4+ {[%clk 00:07:23]} {[%emt 00:00:07]} 37. hxg4 {[%clk
00:03:19]} {[%emt 00:00:07]} gxf4 {[%clk 00:07:19]} {[%emt 00:00:09]} 38. Kxf4
{[%clk 00:03:16]} {[%emt 00:00:08]} a4 {[%clk 00:07:15]} {[%emt 00:00:09]} 39.
R5c2 {[%clk 00:02:53]} {[%emt 00:00:27]} axb3 {[%clk 00:07:12]} {[%emt
00:00:09]} 40. axb3 {[%clk 00:02:57]} {[%emt 00:00:01]} Rb6 {[%clk 00:07:16]}
{[%emt 00:00:01]} 41. Rb2 {[%clk 00:03:01]} {[%emt 00:00:01]} Rb4 {[%clk
00:07:19]} {[%emt 00:00:01]} 42. Ke3 {[%clk 00:02:41]} {[%emt 00:00:25]} Rg6
{[%clk 00:07:20]} {[%emt 00:00:05]} 43. Rg1 {[%clk 00:02:42]} {[%emt 00:00:03]}
Rg5 {[%clk 00:07:13]} {[%emt 00:00:12]} 44. Rbb1 {[%clk 00:02:27]} {[%emt
00:00:21]} Ke6 {[%clk 00:06:51]} {[%emt 00:00:26]} 45. Kd3 {[%clk 00:02:25]}
{[%emt 00:00:08]} c5 {[%clk 00:06:15]} {[%emt 00:00:40]} 46. dxc5 {[%clk
00:01:31]} {[%emt 00:01:00]} Rgxg4 {[%clk 00:06:17]} {[%emt 00:00:03]} 47. Rxg4
{[%clk 00:01:19]} {[%emt 00:00:16]} Rxg4 {[%clk 00:06:20]} {[%emt 00:00:02]} 48.
Rh1 {[%clk 00:01:08]} {[%emt 00:00:15]} Rg6 {[%clk 00:06:19]} {[%emt 00:00:07]}
49. Rh5 {[%clk 00:00:57]} {[%emt 00:00:15]} Rg3+ {[%clk 00:06:20]} {[%emt
00:00:05]} 50. Kd4 {[%clk 00:00:45]} {[%emt 00:00:16]} Rg4+ {[%clk 00:06:11]}
{[%emt 00:00:16]} 51. Kd3 {[%clk 00:00:44]} {[%emt 00:00:05]} Rg3+ {[%clk
00:06:14]} {[%emt 00:00:03]} 52. Kd4 {[%clk 00:00:48]} {[%emt 00:00:01]} Rg4+
{[%clk 00:06:18]} {[%emt 00:00:01]} 53. Kd3 {[%clk 00:00:52]} {[%emt 00:00:01]}
Rg3+ {[%clk 00:06:21]} {[%emt 00:00:02]} 1/2-1/2